[Event "IIFL Wealth  4th Mumbai Junior U-13"]
[Site "Mumbai"]
[Date "2019.01.03"]
[Round "5"]
[White "Kadam Laksh"]
[Black "Nehete Arnav"]
[Result "0-1"]
[ECO "B12"]
[WhiteElo "1182"]
[BlackElo "1544"]
[Annotator "NA RC"]
[PlyCount "68"]
[EventDate "2018.12.30"]
[EventType "swiss"]
[EventCountry "IND"]
[SourceTitle "playchess.com"]
[Source "ChessBase"]
[SourceQuality "1"]
[TimeControl "40/5400+30:1800+30"]

1. e4 {[%emt 0:00:00]} c6 {[%emt 0:00:10]} 2. d4 {[%emt 0:00:00]} d5 {[%emt 0:00:01]} 3. e5 {[%emt 0:01:33]} c5 {[%emt 0:00:08]} 4. c3 {[%emt 0:01:02]} Nc6 {[%emt 0:01:35]} 5. f4 {[%emt 0:19:19]} Bf5 {[%emt 0:05:05]} 6. Nf3 {[%emt 0:02:57]} e6 {[%emt 0:02:32]} 7. g3 {[%emt 0:00:42]} Bg4 {[%emt 0:06:53]} 8. Bg2 {[%emt 0:01:44]} cxd4 {[%emt 0:02:21]} 9. cxd4 {[%emt 0:00:31]} Rc8 {[%emt 0:03:34]} 10. Nc3 {[%emt 0:03:47]} Qb6 {[%emt 0:02:59]} 11. Ne2 {[%emt 0:02:21]} Nge7 {[%emt 0:05:20]} 12. O-O {[%emt 0:30:23]} Nf5 {[%emt 0:01:32]} 13. Kh1 {[%emt 0:02:15]} Bxf3 {[%emt 0:06:43]} 14. Bxf3 {[%emt 0:00:16]} Nfxd4 {[%emt 0:14:00]} 15. Be3 {[%emt 0:07:06]} Bc5 {[%emt 0:00:01]} 16. Rc1 {[%emt 0:01:51]} Nb3 {[%emt 0:12:17]} 17. Bxc5 {[%emt 0:10:29]} Nxc5 {[%emt 0:00:16]} 18. b3 {[%emt 0:02:43]} O-O {[%emt 0:01:15]} 19. h4 {[%emt 0:01:32]} Ne7 {[%emt 0:15:16]} 20. g4 {[%emt 0:00:59]} Ng6 {[%emt 0:03:16]} 21. Qe1 {[%emt 0:01:44]} Nd3 {[%emt 0:02:42]} 22. Qg3 {[%emt 0:00:53]} Nxc1 {[%emt 0:00:09]} 23. Nxc1 {[%emt 0:00:09]} Qd8 {[%emt 0:01:11]} 24. g5 {[%emt 0:01:22]} Ne7 {[%emt 0:00:46]} 25. Bg4 {[%emt 0:01:14]} d4 {[%emt 0:03:13]} 26. Nd3 {[%emt 0:00:11]} Qd5+ {[%emt 0:00:26]} 27. Bf3 {[%emt 0:01:57]} Nf5 {[%emt 0:00:01]} 28. Qh3 {[%emt 0:00:25]} Qb5 {[%emt 0:00:52]} 29. Be4 {[%emt 0:00:08]} Ne3 {[%emt 0:01:19]} 30. Rg1 {[%emt 0:01:08]} Rc3 {[%emt 0:01:06]} 31. h5 {[%emt 0:01:41]} g6 {[%emt 0:01:51]} 32. hxg6 {[%emt 0:00:50]} hxg6 {[%emt 0:00:01]} 33. Qh6 {[%emt 0:00:41]} Nf5 {[%emt 0:01:15]} 34. Rg2 {[%emt 0:02:01]} Nxh6 0-1

[Event "IIFL Wealth  4th Mumbai Junior U-13"]
[Site "Mumbai"]
[Date "2019.01.03"]
[Round "5"]
[White "Shaurya Dinesh Sawlani"]
[Black "Vedant Nitin vekhande"]
[Result "0-1"]
[ECO "B23"]
[WhiteElo "1173"]
[BlackElo "1564"]
[Annotator "NA RC"]
[PlyCount "166"]
[EventDate "2018.12.30"]
[EventType "swiss"]
[EventCountry "IND"]
[SourceTitle "playchess.com"]
[Source "ChessBase"]
[SourceQuality "1"]
[TimeControl "40/5400+30:1800+30"]

1. e4 {[%emt 0:00:00]} c5 {[%emt 0:00:00]} 2. Nc3 {[%emt 0:00:00]} g6 {[%emt 0:00:00]} 3. f4 {[%emt 0:00:02]} Bg7 {[%emt 0:00:00]} 4. Nf3 {[%emt 0:00:17]} Nc6 {[%emt 0:00:00]} 5. Bc4 {[%emt 0:00:13]} e6 {[%emt 0:00:51]} 6. O-O {[%emt 0:00:31]} Nge7 {[%emt 0:00:11]} 7. Qe1 {[%emt 0:03:22]} O-O {[%emt 0:02:52]} 8. d3 {[%emt 0:03:52]} a6 {[%emt 0:01:43]} 9. a4 {[%emt 0:05:55]} b6 {[%emt 0:00:15]} 10. Kh1 {[%emt 0:04:18]} d5 {[%emt 0:06:15]} 11. Ba2 {[%emt 0:02:41]} Nd4 {[%emt 0:04:56]} 12. Nxd4 {[%emt 0:01:51]} cxd4 {[%emt 0:00:08]} 13. Ne2 {[%emt 0:04:33]} dxe4 {[%emt 0:00:46]} 14. dxe4 {[%emt 0:01:14]} d3 {[%emt 0:01:09]} 15. cxd3 {[%emt 0:03:25]} Qxd3 {[%emt 0:00:10]} 16. Bb1 {[%emt 0:01:53]} Qd7 {[%emt 0:00:30]} 17. Qg3 {[%emt 0:01:19]} Qc7 18. Ra3 {[%emt 0:04:37]} a5 {[%emt 0:18:47]} 19. Bd3 {[%emt 0:02:47]} Nc6 {[%emt 0:03:30]} 20. Qh4 {[%emt 0:07:10]} Qd8 {[%emt 0:02:57]} 21. Qg3 {[%emt 0:02:30]} Nb4 {[%emt 0:04:59]} 22. f5 {[%emt 0:08:10]} Nxd3 {[%emt 0:01:16]} 23. Rxd3 {[%emt 0:00:56]} Qe7 {[%emt 0:00:08]} 24. Qf2 {[%emt 0:02:10]} exf5 {[%emt 0:00:19]} 25. exf5 {[%emt 0:00:22]} Bxf5 {[%emt 0:00:12]} 26. Ra3 {[%emt 0:04:04]} Rfe8 {[%emt 0:00:50]} 27. Ng3 {[%emt 0:00:39]} Be6 {[%emt 0:05:41]} 28. Qxb6 {[%emt 0:02:12]} Bc4 {[%emt 0:01:04]} 29. Rg1 {[%emt 0:01:38]} Rad8 {[%emt 0:01:50]} 30. Be3 {[%emt 0:09:30]} Qe5 {[%emt 0:04:10]} 31. Bc1 {[%emt 0:01:55]} Bf8 {[%emt 0:10:52]} 32. Re3 {[%emt 0:01:33]} Bc5 {[%emt 0:01:42]} 33. Rxe5 {[%emt 0:02:49]} Bxb6 {[%emt 0:00:05]} 34. Rxe8+ {[%emt 0:00:09]} Rxe8 {[%emt 0:00:18]} 35. Rd1 {[%emt 0:00:15]} Bb3 {[%emt 0:00:08]} 36. Rf1 {[%emt 0:00:35]} Bxa4 {[%emt 0:00:19]} 37. Bh6 {[%emt 0:00:12]} Bb5 {[%emt 0:00:13]} 38. Rc1 {[%emt 0:00:46]} Bd4 {[%emt 0:00:25]} 39. b3 {[%emt 0:00:31]} Be3 {[%emt 0:00:32]} 40. Bxe3 {[%emt 0:00:00]} Rxe3 {[%emt 0:00:00]} 41. Rb1 {[%emt 0:04:30]} Bd3 {[%emt 0:03:52]} 42. Ra1 {[%emt 0:00:19]} Bc2 {[%emt 0:00:44]} 43. Kg1 {[%emt 0:00:12]} Re5 {[%emt 0:00:40]} 44. Ra3 {[%emt 0:00:50]} Rb5 {[%emt 0:01:43]} 45. Ne2 {[%emt 0:00:14]} Rxb3 {[%emt 0:00:50]} 46. Rxa5 {[%emt 0:00:12]} Bd3 {[%emt 0:02:35]} 47. Nf4 {[%emt 0:01:04]} Be4 {[%emt 0:01:15]} 48. Ra2 {[%emt 0:00:19]} Kg7 {[%emt 0:00:58]} 49. Kf2 {[%emt 0:00:14]} Rb4 {[%emt 0:01:03]} 50. Ne2 {[%emt 0:00:57]} Bd5 {[%emt 0:01:16]} 51. Rd2 {[%emt 0:01:32]} Bb7 {[%emt 0:00:32]} 52. g3 {[%emt 0:01:04]} Ba6 {[%emt 0:01:14]} 53. Nf4 {[%emt 0:00:40]} Bc4 {[%emt 0:02:49]} 54. Ke3 {[%emt 0:03:51]} g5 {[%emt 0:00:31]} 55. Ne2 {[%emt 0:02:34]} Bxe2 {[%emt 0:00:41]} 56. Rxe2 {[%emt 0:00:13]} Kg6 {[%emt 0:00:08]} 57. Kf3 f5 {[%emt 0:00:24]} 58. Re6+ {[%emt 0:00:51]} Kh5 {[%emt 0:00:11]} 59. h3 {[%emt 0:01:33]} Rb3+ {[%emt 0:06:35]} 60. Kf2 {[%emt 0:00:50]} Rb2+ {[%emt 0:00:23]} 61. Kf3 {[%emt 0:02:50]} g4+ {[%emt 0:01:28]} 62. hxg4+ {[%emt 0:00:30]} fxg4+ {[%emt 0:00:29]} 63. Ke3 {[%emt 0:00:23]} Rg2 {[%emt 0:01:11]} 64. Kf4 {[%emt 0:00:42]} Rf2+ {[%emt 0:02:01]} 65. Ke5 {[%emt 0:02:46]} Re2+ {[%emt 0:00:05]} 66. Kf6 {[%emt 0:00:13]} Rxe6+ {[%emt 0:00:42]} 67. Kxe6 {[%emt 0:00:09]} Kg5 {[%emt 0:00:02]} 68. Ke5 {[%emt 0:00:08]} h5 {[%emt 0:00:05]} 69. Ke4 {[%emt 0:00:26]} h4 {[%emt 0:00:07]} 70. Ke3 {[%emt 0:00:35]} h3 {[%emt 0:00:08]} 71. Kf2 {[%emt 0:00:04]} Kf5 {[%emt 0:00:03]} 72. Kg1 {[%emt 0:00:22]} Ke4 {[%emt 0:00:04]} 73. Kf2 {[%emt 0:00:06]} Kd3 {[%emt 0:00:04]} 74. Kg1 {[%emt 0:00:23]} Ke3 {[%emt 0:00:03]} 75. Kh2 {[%emt 0:00:19]} Kf2 {[%emt 0:00:23]} 76. Kh1 {[%emt 0:00:06]} Kxg3 {[%emt 0:00:03]} 77. Kg1 {[%emt 0:00:08]} Kf3 78. Kh1 {[%emt 0:00:12]} g3 {[%emt 0:00:38]} 79. Kg1 {[%emt 0:00:33]} g2 {[%emt 0:00:18]} 80. Kh2 {[%emt 0:00:08]} Kf2 {[%emt 0:00:02]} 81. Kxh3 {[%emt 0:00:25]} g1=Q {[%emt 0:00:07]} 82. Kh4 {[%emt 0:00:06]} Qg6 {[%emt 0:00:04]} 83. Kh3 {[%emt 0:00:12]} Qh5# {[%emt 0:00:05]} 0-1

[Event "IIFL Wealth  4th Mumbai Junior U-13"]
[Site "Mumbai"]
[Date "2019.01.03"]
[Round "5"]
[White "Aarav, Bhavin Mehta"]
[Black "Virle Kimaya"]
[Result "0-1"]
[ECO "D04"]
[WhiteElo "1166"]
[BlackElo "1391"]
[Annotator "NA RC"]
[PlyCount "86"]
[EventDate "2018.12.30"]
[EventType "swiss"]
[EventCountry "IND"]
[SourceTitle "playchess.com"]
[Source "ChessBase"]
[SourceQuality "1"]
[TimeControl "40/5400+30:1800+30"]

1. d4 {[%emt 0:00:00]} d5 {[%emt 0:00:00]} 2. Nf3 {[%emt 0:00:00]} Nf6 {[%emt 0:00:00]} 3. e3 {[%emt 0:00:00]} Bg4 {[%emt 0:00:02]} 4. c4 {[%emt 0:00:07]} c6 {[%emt 0:00:24]} 5. Qb3 {[%emt 0:00:31]} Qc7 {[%emt 0:00:10]} 6. Nc3 {[%emt 0:00:00]} Bxf3 {[%emt 0:01:10]} 7. gxf3 {[%emt 0:00:00]} e6 {[%emt 0:00:08]} 8. Bd2 {[%emt 0:00:04]} Nbd7 {[%emt 0:01:28]} 9. Rc1 {[%emt 0:00:41]} Qb6 {[%emt 0:02:21]} 10. c5 {[%emt 0:01:21]} Qxb3 {[%emt 0:02:17]} 11. axb3 {[%emt 0:00:02]} e5 {[%emt 0:00:54]} 12. b4 {[%emt 0:03:01]} a6 {[%emt 0:00:30]} 13. Ra1 {[%emt 0:00:33]} Rd8 {[%emt 0:00:35]} 14. Bd3 {[%emt 0:02:32]} g6 {[%emt 0:00:32]} 15. O-O {[%emt 0:03:31]} Bg7 {[%emt 0:01:07]} 16. Rfe1 {[%emt 0:02:11]} O-O {[%emt 0:01:50]} 17. Rad1 {[%emt 0:05:13]} Nh5 {[%emt 0:02:47]} 18. Ne2 {[%emt 0:04:42]} f5 {[%emt 0:03:22]} 19. Bc3 {[%emt 0:04:00]} Rde8 {[%emt 0:06:29]} 20. e4 {[%emt 0:09:30]} exd4 {[%emt 0:06:41]} 21. Nxd4 {[%emt 0:01:32]} fxe4 {[%emt 0:00:27]} 22. fxe4 {[%emt 0:00:28]} Nf4 {[%emt 0:00:56]} 23. f3 {[%emt 0:10:40]} Nxd3 {[%emt 0:10:26]} 24. Rxd3 {[%emt 0:00:12]} Ne5 {[%emt 0:00:06]} 25. Rde3 {[%emt 0:06:53]} Bh6 {[%emt 0:02:17]} 26. R3e2 {[%emt 0:00:53]} Nxf3+ {[%emt 0:01:03]} 27. Nxf3 {[%emt 0:00:15]} Rxf3 28. exd5 {[%emt 0:03:39]} Rxe2 {[%emt 0:08:17]} 29. Rxe2 {[%emt 0:00:44]} Re3 {[%emt 0:00:24]} 30. Rg2 {[%emt 0:09:56]} cxd5 {[%emt 0:01:21]} 31. Rg4 {[%emt 0:07:18]} Re4 {[%emt 0:01:33]} 32. Rxe4 {[%emt 0:01:35]} dxe4 {[%emt 0:00:08]} 33. Kf2 {[%emt 0:00:48]} Kf7 {[%emt 0:00:09]} 34. b3 {[%emt 0:00:48]} Bf4 {[%emt 0:01:06]} 35. h3 {[%emt 0:00:14]} Ke6 {[%emt 0:00:22]} 36. Ke2 {[%emt 0:00:57]} Kf5 {[%emt 0:00:20]} 37. Bd4 {[%emt 0:00:33]} g5 {[%emt 0:00:36]} 38. Bf2 {[%emt 0:00:24]} h5 {[%emt 0:00:18]} 39. Be1 {[%emt 0:00:10]} g4 {[%emt 0:00:16]} 40. hxg4+ {[%emt 0:00:00]} hxg4 {[%emt 0:00:00]} 41. Kf2 {[%emt 0:00:34]} Bc1 {[%emt 0:00:52]} 42. Kg3 {[%emt 0:00:42]} e3 {[%emt 0:00:21]} 43. Bc3 {[%emt 0:00:12]} Bd2 {[%emt 0:00:07]} 0-1

[Event "IIFL Wealth  4th Mumbai Junior U-13"]
[Site "Mumbai"]
[Date "2019.01.03"]
[Round "5"]
[White "Ks Saikrishna"]
[Black "Shreyas Seshadri Nallore"]
[Result "1/2-1/2"]
[ECO "C25"]
[WhiteElo "1138"]
[BlackElo "1343"]
[Annotator "NA RC"]
[PlyCount "110"]
[EventDate "2018.12.30"]
[EventType "swiss"]
[EventCountry "IND"]
[SourceTitle "playchess.com"]
[Source "ChessBase"]
[SourceQuality "1"]
[TimeControl "40/5400+30:1800+30"]

1. e4 {[%emt 0:00:00]} e5 {[%emt 0:00:00]} 2. Nc3 {[%emt 0:00:00]} Nc6 {[%emt 0:00:00]} 3. Bc4 {[%emt 0:00:00]} Bc5 {[%emt 0:00:15]} 4. Qg4 {[%emt 0:00:00]} g6 {[%emt 0:00:10]} 5. Qg3 {[%emt 0:00:00]} d6 {[%emt 0:00:05]} 6. Nge2 {[%emt 0:00:52]} Be6 {[%emt 0:08:25]} 7. Bb5 {[%emt 0:09:30]} Nge7 {[%emt 0:07:21]} 8. d3 {[%emt 0:02:24]} a6 {[%emt 0:07:38]} 9. Ba4 {[%emt 0:01:07]} Qd7 {[%emt 0:07:30]} 10. Be3 {[%emt 0:04:51]} Bxe3 {[%emt 0:09:49]} 11. fxe3 {[%emt 0:00:44]} b5 {[%emt 0:01:08]} 12. Bb3 {[%emt 0:00:13]} Bxb3 {[%emt 0:00:24]} 13. axb3 {[%emt 0:00:10]} Nb4 {[%emt 0:01:34]} 14. Rc1 {[%emt 0:02:39]} c5 {[%emt 0:06:57]} 15. d4 {[%emt 0:10:52]} exd4 {[%emt 0:06:57]} 16. exd4 {[%emt 0:00:46]} cxd4 {[%emt 0:04:08]} 17. Nxd4 {[%emt 0:00:11]} d5 {[%emt 0:04:41]} 18. exd5 {[%emt 0:05:32]} Nbxd5 {[%emt 0:02:50]} 19. O-O {[%emt 0:08:00]} Nxc3 {[%emt 0:03:06]} 20. Qxc3 {[%emt 0:01:46]} O-O {[%emt 0:01:02]} 21. Rcd1 {[%emt 0:01:32]} Qb7 {[%emt 0:07:28]} 22. Qf3 {[%emt 0:07:44]} Qxf3 {[%emt 0:01:52]} 23. Nxf3 {[%emt 0:02:15]} Nf5 {[%emt 0:00:29]} 24. Rd3 {[%emt 0:01:34]} Rad8 {[%emt 0:03:26]} 25. Rfd1 {[%emt 0:00:53]} Rxd3 {[%emt 0:01:09]} 26. Rxd3 {[%emt 0:00:37]} Re8 {[%emt 0:00:40]} 27. Kf2 {[%emt 0:03:38]} h5 {[%emt 0:01:21]} 28. Nd4 {[%emt 0:03:03]} Nd6 {[%emt 0:02:30]} 29. Re3 {[%emt 0:01:15]} Rc8 {[%emt 0:01:07]} 30. Kf3 {[%emt 0:08:20]} Kf8 {[%emt 0:00:58]} 31. Rc3 {[%emt 0:00:58]} Rxc3+ {[%emt 0:02:07]} 32. bxc3 {[%emt 0:00:02]} a5 {[%emt 0:00:11]} 33. Ke3 {[%emt 0:05:12]} Ke8 {[%emt 0:02:12]} 34. Kd3 {[%emt 0:00:54]} Kd7 {[%emt 0:00:45]} 35. c4 {[%emt 0:05:17]} bxc4+ {[%emt 0:00:31]} 36. bxc4 {[%emt 0:00:02]} Nb7 {[%emt 0:01:43]} 37. Nb5 {[%emt 0:01:47]} Kc6 {[%emt 0:00:48]} 38. Kd4 {[%emt 0:00:34]} Nd8 {[%emt 0:00:38]} 39. c3 {[%emt 0:00:47]} f6 {[%emt 0:00:33]} 40. Na7+ {[%emt 0:00:00]} Kb7 {[%emt 0:00:00]} 41. Nb5 {[%emt 0:01:00]} Kc6 {[%emt 0:24:39]} 42. Na7+ {[%emt 0:01:09]} Kb7 {[%emt 0:00:03]} 43. Nb5 {[%emt 0:00:04]} Ne6+ 44. Kd5 Nf4+ 45. Kd6 Ne6 46. Kd5 Nc7+ 47. Kc5 Nxb5 48. Kxb5 g5 49. Kxa5 Kc6 50. Kb4 h4 51. c5 g4 52. Kc4 f5 53. Kd4 f4 54. Ke4 f3 55. gxf3 g3 1/2-1/2

[Event "IIFL Wealth  4th Mumbai Junior U-13"]
[Site "Mumbai"]
[Date "2019.01.03"]
[Round "5"]
[White "Saukhya Savant"]
[Black "Jain, Kushagra"]
[Result "1/2-1/2"]
[ECO "B08"]
[WhiteElo "1122"]
[BlackElo "1323"]
[Annotator "NA RC"]
[PlyCount "112"]
[EventDate "2018.12.30"]
[EventType "swiss"]
[EventCountry "IND"]
[SourceTitle "playchess.com"]
[Source "ChessBase"]
[SourceQuality "1"]
[TimeControl "40/5400+30:1800+30"]

1. e4 d6 2. d4 Nf6 3. Nc3 g6 4. Nf3 Bg7 5. Bf4 O-O 6. Bd3 Bg4 7. h3 Bxf3 8. Qxf3 Nc6 9. Ne2 Nd7 10. c3 e5 11. Be3 exd4 12. Nxd4 Nde5 13. Qe2 Nxd3+ 14. Qxd3 Ne5 15. Qe2 Qe7 16. O-O Nc6 17. Nxc6 bxc6 18. f3 Rfe8 19. Qf2 f5 20. Rfe1 fxe4 21. fxe4 Qxe4 22. Bxa7 Qf5 23. Rxe8+ Rxe8 24. Qxf5 gxf5 25. Bf2 Re2 26. Rb1 Kf7 27. Kf1 Re8 28. Re1 Ra8 29. a3 c5 30. Bh4 Bf8 31. Re2 Ra4 32. Bg3 Be7 33. Rf2 Ke6 34. Rf4 c4 35. h4 d5 36. Rf3 c6 37. Re3+ Kd7 38. Ke2 Bf6 39. Rf3 Ke6 40. Bf2 Ra5 41. Kd2 c5 42. Kc2 d4 43. cxd4 cxd4 44. Kc1 d3 45. Be1 Rb5 46. b4 cxb3 47. Rxd3 b2+ 48. Kb1 Rc5 49. Rd1 Rc4 50. Bf2 f4 51. g3 f3 52. Be3 Kf5 53. Rf1 Ke4 54. Bd2 Kd3 55. Rxf3+ Kxd2 56. Rxf6 Rc3 1/2-1/2

[Event "IIFL Wealth  4th Mumbai Junior U-13"]
[Site "Mumbai"]
[Date "2019.01.03"]
[Round "5"]
[White "Shah, Viraj Bhaveshu"]
[Black "Mitank Maru"]
[Result "0-1"]
[ECO "B28"]
[WhiteElo "1119"]
[BlackElo "1312"]
[Annotator "NA RC"]
[PlyCount "24"]
[EventDate "2018.12.30"]
[EventType "swiss"]
[EventCountry "IND"]
[SourceTitle "playchess.com"]
[Source "ChessBase"]
[SourceQuality "1"]
[TimeControl "40/5400+30:1800+30"]

1. e4 {[%emt 0:00:00]} c5 {[%emt 0:00:00]} 2. Nf3 {[%emt 0:00:00]} a6 {[%emt 0:00:00]} 3. d4 {[%emt 0:00:00]} cxd4 {[%emt 0:00:00]} 4. Nxd4 {[%emt 0:00:00]} Nf6 {[%emt 0:00:00]} 5. Bd3 {[%emt 0:00:37]} e5 {[%emt 0:11:43]} 6. Nb3 {[%emt 0:01:11]} d5 {[%emt 0:06:00]} 7. Nc3 {[%emt 0:03:16]} Bb4 {[%emt 0:02:07]} 8. Bd2 {[%emt 0:02:34]} Bxc3 {[%emt 0:06:09]} 9. Bxc3 {[%emt 0:00:12]} dxe4 {[%emt 0:00:56]} 10. Be2 {[%emt 0:01:21]} Qd6 11. Qd2 Qxd2+ {[%emt 0:01:20] Rc1 Qd1+ Rxd1 [%clk 1:25:42] Nc6 [%clk 1:07:09] O-O [%clk 1:24:43] O-O [%clk 1:07:16] f4 [%clk 1:24:42] exf3 [%clk 1:04:36] Bxf3 [%clk 1:22:52] e4 [%clk 1:01:37] Bxf6 [%clk 1:22:27] exf3 [%clk 1:00:37] Rxf3 gxf6 [%clk 0:56:29] Rxf6 [%clk 1:16:57] Bg4 [%clk 0:55:18] Rd5 [%clk 1:14:32] Kh8 [%clk 0:47:46] Rh6 [%clk 1:13:06] Ne7 [%clk 0:45:47] Re5 [%clk 1:09:23] Rae8 [%clk 0:36:25] h3 [%clk 1:08:13] f6 [%clk 0:33:26] Re4 [%clk 1:06:18] Kg7 [%clk 0:31:49] Rh4 [%clk 1:05:48] Bf5 [%clk 0:29:34] Re2 [%clk 1:00:54] Ng6 [%clk 0:28:37] Rxe8 [%clk 0:59:12] Rxe8 [%clk 0:28:09] Rb4 [%clk 0:58:15] b5 [%clk 0:25:53] c3 [%clk 0:54:19] Ne5 [%clk 0:23:13] Rf4 [%clk 0:51:43] Bg6 [%clk 0:21:56] Nd4 [%clk 0:48:13] Nd3 [%clk 0:20:06] Rg4 [%clk 0:46:55] Re1+ [%clk 0:18:46] Kh2 [%clk 0:46:52] Nf2 [%clk 0:16:23] Rf4 [%clk 0:44:17] Nd3 [%clk 0:14:07] Nf3 [%clk 0:41:59] Nxf4 [%clk 0:13:31] Nxe1 [%clk 0:42:12] Nd3 [%clk 0:13:33] Nxd3 [%clk 0:41:49] Bxd3 [%clk 0:13:58] Kg3 [%clk 0:41:55] Kg6 [%clk 0:13:52] a3 [%clk 0:41:48] Kf5 [%clk 0:12:25] Kf3 [%clk 0:40:18] h5 [%clk 0:12:12] h4 [%clk 0:38:11] Be4+ [%clk 0:12:12] Kg3 [%clk 1:06:58] Bd5 [%clk 0:42:21] Kh3 [%clk 1:06:48] Kf4 [%clk 0:42:34] g3+ [%clk 1:06:43] Kf3 [%clk 0:42:31] Kh2 [%clk 1:05:44] Kg4 [%clk 0:42:53] b4 [%clk 1:05:28] f5 [%clk 0:42:53] Kg1 [%clk 1:05:47] Kxg3 [%clk 0:43:03]} 12. Kf1 {[%emt 0:20:51] f4 [%clk 0:43:21] Ke2 [%clk 1:05:34] f3+ [%clk 0:43:39] Ke3 [%clk 1:05:51] f2 [%clk 0:43:27] c4 [%clk 1:06:11] Bxc4 [%clk 0:43:49] a4 [%clk 1:06:25] f1=Q [%clk 0:44:05]} a5 {[%emt 0:00:55] Qf4# [%clk 0:44:27]} 0-1

[Event "IIFL Wealth  4th Mumbai Junior U-13"]
[Site "Mumbai"]
[Date "2019.01.03"]
[Round "5"]
[White "Sureka Akshat"]
[Black "Srivatsan Karthikeyan"]
[Result "0-1"]
[ECO "A37"]
[WhiteElo "1078"]
[BlackElo "1288"]
[Annotator "NA RC"]
[PlyCount "82"]
[EventDate "2018.12.30"]
[EventType "swiss"]
[EventCountry "IND"]
[SourceTitle "playchess.com"]
[Source "ChessBase"]
[SourceQuality "1"]
[TimeControl "40/5400+30:1800+30"]

1. c4 {[%emt 0:00:00]} c5 {[%emt 0:00:00]} 2. Nc3 {[%emt 0:00:32]} Nc6 {[%emt 0:00:00]} 3. g3 {[%emt 0:00:47]} g6 {[%emt 0:00:03]} 4. Bg2 {[%emt 0:00:41]} Bg7 {[%emt 0:00:06]} 5. Nf3 {[%emt 0:00:43]} e6 {[%emt 0:00:56]} 6. e3 {[%emt 0:01:53]} Nge7 {[%emt 0:01:39]} 7. O-O {[%emt 0:00:15]} h5 {[%emt 0:01:16]} 8. h4 {[%emt 0:00:47]} Nf5 {[%emt 0:01:02]} 9. Ne2 {[%emt 0:01:33]} f6 {[%emt 0:07:09]} 10. d3 {[%emt 0:04:52]} Nd6 11. e4 {[%emt 0:00:55]} Nf7 {[%emt 0:06:31]} 12. Be3 {[%emt 0:01:13]} b6 {[%emt 0:00:10]} 13. Qd2 {[%emt 0:00:20]} Bh6 {[%emt 0:13:59]} 14. Nf4 {[%emt 0:03:56]} e5 {[%emt 0:03:33]} 15. Nd5 {[%emt 0:03:07]} Bxe3 {[%emt 0:00:21]} 16. Qxe3 {[%emt 0:00:36]} g5 {[%emt 0:00:09]} 17. Rae1 {[%emt 0:02:55]} d6 {[%emt 0:06:16]} 18. Nh2 {[%emt 0:05:16]} gxh4 {[%emt 0:03:17]} 19. f4 {[%emt 0:01:21]} h3 {[%emt 0:02:09]} 20. Bh1 {[%emt 0:00:25]} Be6 {[%emt 0:00:48]} 21. fxe5 {[%emt 0:00:29]} Bxd5 {[%emt 0:00:34]} 22. exd5 {[%emt 0:00:44]} Ncxe5 {[%emt 0:00:09]} 23. Qf4 {[%emt 0:01:49]} Kd7 {[%emt 0:03:05]} 24. Qxf6 {[%emt 0:01:23]} Qxf6 {[%emt 0:00:22]} 25. Rxf6 {[%emt 0:00:07]} Rag8 {[%emt 0:00:15]} 26. Re3 {[%emt 0:01:02]} h4 {[%emt 0:00:50]} 27. g4 {[%emt 0:01:45]} Nh6 {[%emt 0:01:28]} 28. Bf3 {[%emt 0:01:45]} Rg7 {[%emt 0:04:00]} 29. Be2 {[%emt 0:00:51]} Nhxg4 {[%emt 0:02:54]} 30. Nxg4 {[%emt 0:01:02]} Nxg4 {[%emt 0:00:06]} 31. Bxg4+ {[%emt 0:00:05]} Rxg4+ {[%emt 0:00:13]} 32. Kh2 {[%emt 0:00:11]} Rh7 {[%emt 0:08:33]} 33. Ree6 {[%emt 0:01:12]} Rg3 {[%emt 0:01:26]} 34. Rxd6+ {[%emt 0:00:13]} Kc7 {[%emt 0:00:04]} 35. Rh6 {[%emt 0:01:45]} Rhg7 {[%emt 0:00:09]} 36. Rc6+ {[%emt 0:01:16]} Kb7 {[%emt 0:00:07]} 37. Rxh4 {[%emt 0:00:10]} Rg2+ {[%emt 0:00:15]} 38. Kh1 {[%emt 0:00:21]} h2 {[%emt 0:00:58]} 39. Rch6 {[%emt 0:01:42]} Ka6 {[%emt 0:00:28]} 40. Rh7 {[%emt 0:00:00]} R7g3 {[%emt 0:00:00]} 41. d6 {[%emt 0:01:01]} Rxb2 {[%emt 0:00:32]} 0-1

[Event "IIFL Wealth  4th Mumbai Junior U-13"]
[Site "Mumbai"]
[Date "2019.01.03"]
[Round "5"]
[White "Ambre Ved"]
[Black "Keshav Padmanabhan"]
[Result "0-1"]
[ECO "C46"]
[WhiteElo "1063"]
[BlackElo "1272"]
[Annotator "NA RC"]
[PlyCount "60"]
[EventDate "2018.12.30"]
[EventType "swiss"]
[EventCountry "IND"]
[SourceTitle "playchess.com"]
[Source "ChessBase"]
[SourceQuality "1"]
[TimeControl "40/5400+30:1800+30"]

1. e4 {[%emt 0:00:00]} e5 {[%emt 0:00:00]} 2. Nf3 {[%emt 0:00:00]} Nc6 {[%emt 0:00:19]} 3. Nc3 {[%emt 0:00:00]} d6 {[%emt 0:00:38]} 4. g3 {[%emt 0:00:03]} Nf6 {[%emt 0:02:06]} 5. Bg2 {[%emt 0:00:04]} Be7 {[%emt 0:01:44]} 6. O-O {[%emt 0:01:14]} O-O {[%emt 0:01:36]} 7. d3 {[%emt 0:01:41]} h6 {[%emt 0:02:48]} 8. a3 {[%emt 0:00:51]} Be6 {[%emt 0:01:49]} 9. Nh4 {[%emt 0:01:19]} Qd7 {[%emt 0:19:12]} 10. Be3 {[%emt 0:17:55]} Ng4 {[%emt 0:17:51]} 11. Nf3 {[%emt 0:03:46]} f5 {[%emt 0:10:12]} 12. exf5 {[%emt 0:05:31]} Bxf5 {[%emt 0:00:55]} 13. d4 {[%emt 0:10:09]} e4 {[%emt 0:02:20]} 14. d5 {[%emt 0:02:41]} exf3 {[%emt 0:09:06]} 15. dxc6 {[%emt 0:00:02]} bxc6 {[%emt 0:00:58]} 16. Qxf3 {[%emt 0:02:33]} Ne5 {[%emt 0:00:53]} 17. Qd1 {[%emt 0:02:33]} Bh3 {[%emt 0:02:05]} 18. Nd5 {[%emt 0:01:06]} cxd5 {[%emt 0:04:47]} 19. Bxd5+ {[%emt 0:00:46]} Kh8 {[%emt 0:00:28]} 20. Qh5 {[%emt 0:05:39]} Bg4 {[%emt 0:02:05]} 21. Bxa8 {[%emt 0:04:09]} Bxh5 {[%emt 0:00:30]} 22. Bg2 {[%emt 0:00:49]} Bf3 {[%emt 0:00:22]} 23. Bxa7 {[%emt 0:00:17]} Bxg2 {[%emt 0:00:36]} 24. Kxg2 {[%emt 0:00:04]} c5 {[%emt 0:00:00]} 25. Bxc5 {[%emt 0:02:06]} Qc6+ {[%emt 0:00:48]} 26. Kh3 {[%emt 0:00:43]} Qf3 {[%emt 0:00:28]} 27. Rae1 {[%emt 0:04:05]} g5 {[%emt 0:00:23]} 28. Re4 {[%emt 0:00:26]} Qxe4 {[%emt 0:00:29]} 29. f3 {[%emt 0:00:36]} Nxf3 {[%emt 0:00:19]} 30. Bxd6 {[%emt 0:02:46]} Ng1+ {[%emt 0:00:24]} 0-1